{"text_format":"3","workbook":"xlsx","n_sheets":2,"sheets":["Початок","Прибутковість клієнта"],"not_rendered":{"charts":1},"read":"whole","date_system":"1900"}

{"sheet":"Початок","index":0,"n_rows":7,"n_cols":2,"rows_kept":7}
[null,"ПРО ЦЕЙ ШАБЛОН"]
[null,"За допомогою цього шаблону аналізу прибутковості ви можете відстежувати Активність клієнтів, Собівартість продажів та Інші витрати."]
[null,"Введіть у таблицю необхідні відомості, як-от Назва компанії та Дата."]
[null,"Значення в клітинках із формулами та в таблиці Зведені показники обчислюються автоматично. Діаграми оновлюють автоматично."]
[null,"Примітка.  "]
[null,"Додаткові вказівки наведено в стовпці A на кожному аркуші \"Прибутковість клієнта\". Цей текст приховано навмисно. Щоб вилучити текст, виберіть стовпець A й натисніть клавішу Delete. Щоб відобразити текст, виберіть стовпець A та змініть колір шрифту."]
[null,"Щоб дізнатися більше про таблиці на цьому аркуші, натисніть клавіші Shift+F10 у таблиці, виберіть \"Таблиця\", а потім – \"Текст заміщення\"."]

{"sheet":"Прибутковість клієнта","index":1,"n_rows":37,"n_cols":6,"rows_kept":37,"merged":[[36,1,36,5]]}
["Аналіз прибутковості клієнтів на цьому аркуші. Корисні вказівки щодо роботи з цим аркушем наведено в клітинках у цьому стовпці. Клацніть стрілку вниз, щоб почати."]
["У клітинку праворуч введіть Назва компанії.","Назва компанії"]
["Заголовок цього аркуша наведено в клітинці праворуч.","Аналіз прибутковості клієнтів"]
["У клітинку праворуч введіть Дата.","Дата"]
["Пораду наведено в клітинці праворуч.","Сірі клітинки обчислюються автоматично. Не потрібно нічого вводити в них."]
["Введіть відомості в таблицю \"Активність клієнтів\", починаючи з клітинки праворуч. Подальші вказівки наведено в клітинці A12.","Активність клієнтів:","Ім’я сегмента 1","Ім’я сегмента 2","Ім’я сегмента 3","Загалом"]
[null,"Кількість активних клієнтів – початок періоду",5,8,8,{"$f":"SUM(C7:E7)","v":21}]
[null,"Кількість нових клієнтів",2,4,4,{"$f":"SUM(C8:E8)","v":10}]
[null,"Кількість втрачених клієнтів або клієнтів, договори з якими розірвано",{"v":-1,"d":"-1 "},{"v":-2,"d":"-2 "},{"v":-2,"d":"-2 "},{"$f":"SUM(C9:E9)","v":{"v":-5,"d":"-5 "}}]
[null,"Кількість активних клієнтів – кінець періоду",{"$f":"SUBTOTAL(109,АктивністьКлієнтів[Ім’я сегмента 1])","v":6},{"$f":"SUBTOTAL(109,АктивністьКлієнтів[Ім’я сегмента 2])","v":10},{"$f":"SUBTOTAL(109,АктивністьКлієнтів[Ім’я сегмента 3])","v":10},{"$f":"SUBTOTAL(109,АктивністьКлієнтів[Загалом])","v":26}]
[]
["Введіть відомості в таблицю \"Аналіз прибутковості\", починаючи з клітинки праворуч. Подальші вказівки наведено в клітинці A16.","Аналіз прибутковості:","Ім’я сегмента 1","Ім’я сегмента 2","Ім’я сегмента 3","Загалом"]
[null,"Дохід за сегментом",{"v":1500000,"d":"1,500,000.00₴"},{"v":1800000,"d":"1,800,000.00₴"},{"v":2500000,"d":"2,500,000.00₴"},{"$f":"SUM(АналізПрибутковості[[#This Row],[Ім’я сегмента 1]:[Ім’я сегмента 3]])","v":{"v":5800000,"d":"5,800,000.00₴"}}]
[null,"Часткове співвідношення",{"$f":"+C13/$F$13","v":{"v":0.25862068965517243,"d":"26%"}},{"$f":"+D13/$F$13","v":{"v":0.3103448275862069,"d":"31%"}},{"$f":"+E13/$F$13","v":{"v":0.43103448275862066,"d":"43%"}},{"$f":"SUM(АналізПрибутковості[[#This Row],[Ім’я сегмента 1]:[Ім’я сегмента 3]])","v":{"v":1,"d":"100%"}}]
[]
["Введіть відомості в таблицю \"Собівартість продажів\", починаючи з клітинки праворуч. Подальші вказівки наведено в клітинці A23.","Собівартість продажів:","Ім’я сегмента 1","Ім’я сегмента 2","Ім’я сегмента 3","Загалом"]
[null,"Поточні витрати на обслуговування та підтримку",{"v":1000000,"d":"1,000,000.00₴"},{"v":1400000,"d":"1,400,000.00₴"},{"v":1400000,"d":"1,400,000.00₴"},{"$f":"SUM(C17:E17)","v":{"v":3800000,"d":"3,800,000.00₴"}}]
[null,"Інші прямі витрати на обслуговування клієнтів",{"v":200000,"d":"200,000.00₴"},{"v":100000,"d":"100,000.00₴"},{"v":100000,"d":"100,000.00₴"},{"$f":"SUM(C18:E18)","v":{"v":400000,"d":"400,000.00₴"}}]
[null,"Загальна собівартість продажів",{"$f":"SUM(C17:C18)","v":{"v":1200000,"d":"1,200,000.00₴"}},{"$f":"SUM(D17:D18)","v":{"v":1500000,"d":"1,500,000.00₴"}},{"$f":"SUM(E17:E18)","v":{"v":1500000,"d":"1,500,000.00₴"}},{"$f":"SUM(F17:F18)","v":{"v":4200000,"d":"4,200,000.00₴"}}]
[null,"Валовий прибуток",{"$f":"+C13-C19","v":{"v":300000,"d":"300,000.00₴"}},{"$f":"+D13-D19","v":{"v":300000,"d":"300,000.00₴"}},{"$f":"+E13-E19","v":{"v":1000000,"d":"1,000,000.00₴"}},{"$f":"+F13-F19","v":{"v":1600000,"d":"1,600,000.00₴"}}]
[null,"Часткове співвідношення",{"$f":"MAX(0, MIN(1,C20/$F$20))","v":{"v":0.1875,"d":"19%"}},{"$f":"MAX(0, MIN(1,D20/$F$20))","v":{"v":0.1875,"d":"19%"}},{"$f":"MAX(0, MIN(1,E20/$F$20))","v":{"v":0.625,"d":"63%"}},{"$f":"SUM(C21:E21)","v":{"v":1,"d":"100%"}}]
[]
["Введіть відомості в таблицю \"Інші витрати\", починаючи з клітинки праворуч. Подальші вказівки наведено в клітинці A31.","Інші витрати:","Ім’я сегмента 1","Ім’я сегмента 2","Ім’я сегмента 3","Загалом"]
[null,"Залучення клієнтів",{"v":105000,"d":"105,000.00₴"},{"v":120000,"d":"120,000.00₴"},{"v":235000,"d":"235,000.00₴"},{"$f":"SUM(ІншіВитрати[[#This Row],[Ім’я сегмента 1]:[Ім’я сегмента 3]])","v":{"v":460000,"d":"460,000.00₴"}}]
[null,"Клієнтський маркетинг",{"v":150000,"d":"150,000.00₴"},{"v":125000,"d":"125,000.00₴"},{"v":275000,"d":"275,000.00₴"},{"$f":"SUM(C25:E25)","v":{"v":550000,"d":"550,000.00₴"}}]
[null,"Розірвання договорів із клієнтами",{"v":80000,"d":"80,000.00₴"},{"v":190000,"d":"190,000.00₴"},{"v":140000,"d":"140,000.00₴"},{"$f":"SUM(C26:E26)","v":{"v":410000,"d":"410,000.00₴"}}]
[null,"Загальна сума інших витрат на обслуговування клієнтів",{"$f":"SUM(C24:C26)","v":{"v":335000,"d":"335,000.00₴"}},{"$f":"SUM(D24:D26)","v":{"v":435000,"d":"435,000.00₴"}},{"$f":"SUM(E24:E26)","v":{"v":650000,"d":"650,000.00₴"}},{"$f":"SUM(F24:F26)","v":{"v":1420000,"d":"1,420,000.00₴"}}]
[null,"Прибутковість клієнтів за сегментом",{"$f":"+C20-C27","v":{"v":-35000,"d":"-35,000.00₴"}},{"$f":"+D20-D27","v":{"v":-135000,"d":"-135,000.00₴"}},{"$f":"+E20-E27","v":{"v":350000,"d":"350,000.00₴"}},{"$f":"SUM(C28:E28)","v":{"v":180000,"d":"180,000.00₴"}}]
[null,"Часткове співвідношення",{"$f":"MAX(0,MIN(1, C28/$F$28))","v":{"v":0,"d":"0%"}},{"$f":"MAX(0,MIN(1, D28/$F$28))","v":{"v":0,"d":"0%"}},{"$f":"MAX(0,MIN(1, E28/$F$28))","v":{"v":1,"d":"100%"}},{"$f":"SUM(C29:E29)","v":{"v":1,"d":"100%"}}]
[]
["Дані в таблиці зведених показників, що починається в клітинці праворуч, оновлюються автоматично. Подальші вказівки наведено в клітинці A37.","Зведені показники:","Ім’я сегмента 1","Ім’я сегмента 2","Ім’я сегмента 3","Тенденція"]
[null,"Середні витрати на залучення клієнтів",{"$f":"+C24/C8","v":{"v":52500,"d":"52,500.00₴"}},{"$f":"+D24/D8","v":{"v":30000,"d":"30,000.00₴"}},{"$f":"+E24/E8","v":{"v":58750,"d":"58,750.00₴"}}]
[null,"Середні витрати на розірвання договорів із клієнтами",{"$f":"-C26/C9","v":{"v":80000,"d":"80,000.00₴"}},{"$f":"-D26/D9","v":{"v":95000,"d":"95,000.00₴"}},{"$f":"-E26/E9","v":{"v":70000,"d":"70,000.00₴"}}]
[null,"Середні витрати на клієнтський маркетинг",{"$f":"+C26/АктивністьКлієнтів[[#Totals],[Ім’я сегмента 1]]","v":{"v":13333.333333333334,"d":"13,333.33₴"}},{"$f":"+D25/АктивністьКлієнтів[[#Totals],[Ім’я сегмента 2]]","v":{"v":12500,"d":"12,500.00₴"}},{"$f":"+E25/АктивністьКлієнтів[[#Totals],[Ім’я сегмента 3]]","v":{"v":27500,"d":"27,500.00₴"}}]
[null,"Середній прибуток (збитки) на клієнта",{"$f":"+C29/АктивністьКлієнтів[[#Totals],[Ім’я сегмента 1]]","v":{"v":0,"d":"0.00₴"}},{"$f":"+D28/АктивністьКлієнтів[[#Totals],[Ім’я сегмента 2]]","v":{"v":-13500,"d":"-13,500.00₴"}},{"$f":"+E28/АктивністьКлієнтів[[#Totals],[Ім’я сегмента 3]]","v":{"v":35000,"d":"35,000.00₴"}}]
[]
["Звичайну стовпчасту діаграму зі Зведені показники за сегментом клієнтів наведено в клітинці праворуч.","Звичайну стовпчасту діаграму зі Зведені показники за сегментом клієнтів наведено в цій клітинці."]